Workbook

Sheet CashFlow
B1: Property Address
B4: Monthly Operating Income | C4: As Is | D4: Pro Forma
B5: Number of Units | C5: 5 | D5: 5
B6: Average Monthly Rent per Unit | C6: 1380 | D6: 1780
B7: Total Rental Income | C7: =sum(C5*C6) -> 6900 | D7: 8900
B8: % Vacancy and Credit Losses | C8: 0.05 | D8: 0.05 | E8: 5% Rule of Thumb
B9: Total Vacancy Loss | C9: =C8*C7 -> 345 | D9: 445
B10: Other Monthly Income (laundry, vending, parking, etc.)
B11: Gross Monthly Operating Income | C11: =C7-C9+C10 -> 6555 | D11: 8455
B13: Monthly Operating Expenses
B14: Property Management Fees | C14: =C11*0.05 -> 327.75 | D14: 422.75 | E14: 5% Rule of Thumb
B15: Repairs and Maintenance | C15: =C11*0.05 -> 327.75 | D15: 422.75 | E15: 5% Rule of Thumb
B16: Real Estate Taxes | C16: 708.3 | D16: 708.3
B17: Rental Property Insurance | C17: 416 | D17: 416 | E17: Typically $1000 a unit/year
B18: Landscaping | C18: 50 | D18: 50 | E18: $500 Base
B19: Cleaning | C19: 0 | D19: 0 | E19: $250 Base
B20: Common Utilities | C20: 100 | D20: 100 | E20: Common Utiltiies
B21: - Water and Sewer | C21: 250 | D21: 250 | E21: $600 Unit/Yr
B22: - Garbage | C22: 0 | D22: 0 | E22: $200/mo
B23: - Electric
B24: - Heat | C24: 0 | D24: 0
B25: Pest Control | E25: $200/mo
B26: Accounting and Legal
B27: Advertising
B28: Monthly Operating Expenses | C28: =SUM(C14:C27) -> 2179.8 | D28: 2369.8
B30: Net Operating Income (NOI)
B31: Total Annual Operating Income | C31: =C11*12 -> 78660 | D31: 101460
B32: Total Annual Operating Expense | C32: =C28*12 -> 26157.6 | D32: 28437.6
B33: Annual Net Operating Income | C33: =C31-C32 -> 52502.4 | D33: 73022.4
B35: Capitalization Rate and Valuation
B36: Desired Capitalization Rate
B37: Property Valuation (Offer Price) | C37: =IF(C36=0," - ",C33/C36) -> - | D37: -
B38: Actual Purchase Price | C38: 650000 | D38: 650000
B39: Actual Capitalization Rate | C39: =IF(C38=0," - ",C33/C38) -> 0.08077292308 | D39: 0.1123421538
B41: Loan Information
B42: Down Payment | C42: =C38*0.2 -> 130000 | D42: 130000 | E42: 20%%
B43: Loan Amount | C43: =C38-C42 -> 520000 | D43: 520000 | E43: 80% LTC
B44: Acquisition Costs and Loan Fees | C44: =C38*0.0075 -> 4875 | D44: 4875 | E44: .75% of Ask Price
B45: Length of Mortgage (years) | C45: 30 | D45: 30
B46: Annual Interest Rate | C46: 0.065 | D46: 0.065
B47: Initial Investment | C47: =C42+C44 -> 134875 | D47: 134875
B48: Monthly Mortgage Payment (PI) | C48: =IF(C43=0,0,-PMT(C46/12,C45*12,C43)) -> 3286.753722 | D48: 3286.753722
B49: Annual Interest | C49: =IF(C43=0,0,-CUMIPMT(C46/12,C45*12,C43,1,12,0)) -> 33628.87223 | D49: 33628.87223
B50: Annual Principal | C50: =IF(C43=0,0,-CUMPRINC(C46/12,C45*12,C43,1,12,0)) -> 5812.172439 | D50: 5812.172439
B51: Total Annual Debt Service | C51: =C48*12 -> 39441.04467 | D51: 39441.04467
B52: DEBT SERVICE RATIO | C52: =C33/C51 -> 1.331161495 | D52: 1.85143169
B54: Cash Flow and ROI
B55: Total Monthly Cash Flow | C55: =C11-C28-C48 -> 1088.446278 | D55: 2798.446278
B56: Total Annual Cash Flow | C56: =C33-C51 -> 13061.35533 | D56: 33581.35533
B57: Cash on Cash Return (ROI) | C57: =IF(C47=0," ",C56/C47) -> 0.09684044733 | D57: 0.2489813185
B59: Note: This spreadsheet should only be used for informational and educational purposes. Please verify
B60: calculations and seek professional assistance before making financial decisions.

Sheet Rent Roll
A1: Unit Number | B1: Size | C1: Current Rent | D1: Pro Forma | E1: Subsidized | F1: Notes
A2: 1 | B2: commercial | C2: vacant | D2: 1400 | H2: Property Overview
A3: 2 | B3: 2 beds 1 bath | C3: 1600 | D3: 1800
A4: 3 | B4: 2 beds 1 bath | C4: 1600 | D4: 1800 | H4: Total Units: 5
A5: 4 | B5: 2 beds 1 bath | C5: 1600 | D5: 1800
A6: attic | B6: 3 beds 1 bath | C6: 2100 | D6: 2100 | F6: attic/ not legal untis | H6: 3 Residential Units – All currently rented
A7: TOTAL | C7: 6900 | D7: 8900
A8: ANNUAL | C8: 82800 | D8: 106800 | H8: 1 Commercial Unit – Currently vacant (previously rented for $1,300/month)
H9: Building & Systems
A10: EXPENSES (30%)
A11: MONTHLY | H11: Furnaces: ONLY 2 FURNACES, OTHER UNTIS USE ELECTRIC BASEBORD
A12: ANNUAL | C12: 24840 | D12: 32040
H13: Roof: Recently replaced
A14: ANNUAL NOI | C14: 57960 | D14: 74760
H15: Water Heaters: New
B17: 700 | C17: 0.0828 | H17: Electric Meters: 5 total (one per unit)
B18: 550 | C18: 0.105
H19: ATTIC
H20: Configured as a 3-bedroom unit, currently rented by the room
H22: Each room rented at $700/month for a total of $2,100/month
H24: Includes a kitchen and bathroom
